bitfinex/quotes_BTCUSD_20240827
["timestamp","ask_amount","ask_price","bid_price","bid_amount"]
[1724752749600,0.115023,62805.0,62801.0,0.0009053]
[1724752749816,0.15638081,62804.0,62801.0,0.1601373]
[1724752750905,0.15638081,62804.0,62801.0,0.1741373]
[1724752751129,0.15638081,62804.0,62801.0,0.1601373]
[1724752751354,0.15738081,62804.0,62801.0,0.1741373]
[1724752752518,0.15838081,62804.0,62801.0,0.1881373]
[1724752754955,0.15838081,62804.0,62802.0,0.159229]
[1724752755783,0.15738081,62804.0,62802.0,0.159229]
[1724752756219,0.15838081,62804.0,62802.0,0.173229]
[1724752756854,0.15738081,62804.0,62802.0,0.173229]
[1724752757072,0.15838081,62804.0,62802.0,0.187229]
[1724752762892,0.15838081,62804.0,62803.0,0.159228]
[1724752763089,0.15838081,62804.0,62802.0,0.18723]
[1724752763307,0.15920381,62804.0,62803.0,0.159228]
[1724752763922,0.155223,62804.0,62803.0,0.159228]
[1724752764356,0.154223,62804.0,62803.0,0.159228]
[1724752764557,0.153223,62804.0,62803.0,0.159228]
[1724752764771,0.154223,62804.0,62803.0,0.173228]
[1724752765819,0.155223,62804.0,62803.0,0.187228]
[1724752766025,0.155223,62804.0,62803.0,0.028]
[1724752766237,0.155223,62804.0,62803.0,0.187228]
[1724752771878,0.15503135,62804.0,62803.0,0.187228]
[1724752772516,0.002823,62804.0,62803.0,0.505684]
[1724752773379,0.002823,62804.0,62803.0,0.82414]
[1724752773655,0.002823,62804.0,62803.0,1.30151409]
[1724752773869,0.002823,62804.0,62803.0,1.32827023]
[1724752774543,0.002823,62804.0,62803.0,1.49803948]
[1724752774762,0.002823,62804.0,62803.0,1.45027023]
[1724752774986,0.001823,62804.0,62803.0,1.43627023]
[1724752775423,0.001823,62804.0,62803.0,1.45027023]
[1724752775637,0.001823,62804.0,62803.0,1.43627023]
[1724752775638,0.000823,62804.0,62803.0,1.43627023]
[1724752776287,0.000823,62804.0,62803.0,1.45027023]
[1724752777107,0.000823,62804.0,62803.0,1.4596528]
[1724752778493,0.000823,62804.0,62803.0,1.3376528]
[1724752779620,0.000823,62804.0,62803.0,1.31089666]
[1724752780324,0.000823,62804.0,62803.0,1.33765083]
[1724752782091,0.000823,62804.0,62803.0,0.83321266]
[1724752782520,0.000823,62804.0,62803.0,0.99244066]
[1724752782733,0.000823,62804.0,62803.0,0.98305809]
[1724752788184,0.000823,62804.0,62803.0,0.66460209]
[1724752788600,0.000823,62804.0,62803.0,0.98305809]
[1724752793386,0.000823,62804.0,62803.0,1.00981258]
[1724752794928,0.000823,62804.0,62803.0,0.98305809]
[1724752796532,0.000823,62804.0,62803.0,0.505684]
[1724752796756,0.274123,62804.0,62803.0,0.028]
[1724752800320,0.274123,62804.0,62803.0,0.02767]
[1724752800582,0.274123,62804.0,62803.0,0.0285753]
[1724752801649,0.000823,62804.0,62803.0,0.0285753]
[1724752801862,0.000823,62804.0,62803.0,0.05533029]
[1724752802285,0.000823,62804.0,62803.0,0.05533032]
[1724752802707,0.155323,62804.0,62803.0,0.0285753]
[1724752803147,0.279323,62804.0,62803.0,0.0285753]
[1724752804544,0.28330387,62804.0,62803.0,0.0285753]
[1724752804787,0.37039775,62804.0,62803.0,0.0285753]
[1724752806381,0.52962275,62804.0,62803.0,0.0285753]
[1724752806626,1.60187273,62804.0,62803.0,0.0285753]
[1724752807480,1.60187273,62804.0,62803.0,0.0145753]
[1724752807748,1.60187273,62804.0,62801.0,0.0009053]
[1724752807749,1.114613,62802.0,62801.0,0.0009053]
[1724752808000,0.15925,62794.0,62793.0,0.0004053]
[1724752808215,0.15925,62794.0,62788.0,0.0009042]
[1724752808216,1.383427,62790.0,62788.0,0.0009042]
[1724752808437,0.159304,62773.0,62772.0,0.0009053]
[1724752808646,0.1195,62782.0,62775.0,0.159298]
[1724752808855,0.08709388,62785.0,62781.0,0.159282]
[1724752809101,0.1195,62787.0,62773.0,0.001]
[1724752809334,0.1195,62787.0,62781.0,0.159282]
[1724752809556,0.1195,62787.0,62773.0,0.001]
[1724752809780,0.1195,62787.0,62779.0,0.159287]
[1724752809988,0.002,62782.0,62777.0,0.159291]
[1724752810200,0.08709388,62785.0,62777.0,0.159291]
[1724752810461,0.1195,62787.0,62779.0,0.159287]
[1724752810683,0.1195,62787.0,62777.0,0.159292]
[1724752811103,0.003,62782.0,62777.0,0.159292]
[1724752811318,0.003,62782.0,62778.0,0.15891809]
[1724752811532,0.278769,62787.0,62781.0,0.012]
[1724752811824,0.1195,62787.0,62781.0,0.012]
[1724752812027,0.27877,62787.0,62781.0,0.012]
[1724752812232,0.159271,62786.0,62781.0,0.012]
[1724752813323,0.1495,62788.0,62779.0,0.1601923]
[1724752813538,0.308767,62788.0,62779.0,0.15982339]
[1724752813745,0.08709388,62783.0,62779.0,0.0009053]
[1724752813975,0.24637988,62780.0,62779.0,0.0009053]
[1724752814197,0.56495188,62780.0,62779.0,0.0009053]
[1724752814663,0.56495188,62780.0,62779.0,0.0119053]
[1724752814882,0.56495188,62780.0,62779.0,0.0009053]
[1724752815112,0.71465188,62780.0,62779.0,0.0009053]
[1724752815338,1.03322388,62780.0,62779.0,0.0279053]
[1724752815588,1.22624438,62780.0,62779.0,0.0279053]
[1724752816019,0.745858,62780.0,62779.0,0.0279053]
[1724752816295,0.02496679,62781.0,62779.0,0.0279053]
[1724752816505,0.317575,62785.0,62779.0,0.0279053]
[1724752816722,0.1583,62785.0,62779.0,0.0279053]
[1724752816971,0.159277,62784.0,62779.0,0.0279053]
[1724752817398,0.159278,62783.0,62779.0,0.0279053]
[1724752817615,0.159278,62783.0,62779.0,0.0009053]
[1724752817842,0.159278,62783.0,62779.0,0.0219053]
[1724752818065,0.159278,62783.0,62779.0,0.0129053]
[1724752818316,0.159278,62783.0,62779.0,0.0009053]
[1724752818527,0.159278,62783.0,62779.0,0.0109053]
[1724752819186,0.159278,62783.0,62779.0,0.0219053]
[1724752819463,0.28526355,62789.0,62779.0,0.18082339]
[1724752819688,0.159266,62788.0,62779.0,0.18082339]
[1724752819897,0.159266,62788.0,62779.0,0.34011039]
[1724752820536,0.159266,62788.0,62779.0,0.33011039]
[1724752820749,0.28526355,62789.0,62781.0,0.159282]
[1724752820957,0.28526355,62789.0,62782.0,0.15891809]
[1724752821819,0.28526355,62789.0,62782.0,0.31819809]
[1724752822043,0.28526355,62789.0,62782.0,0.15891809]
[1724752822488,0.44452755,62789.0,62782.0,0.15891809]
[1724752822697,0.44452755,62789.0,62782.0,0.16291809]
[1724752823123,0.43952755,62789.0,62782.0,0.16291809]
[1724752824002,0.43952755,62789.0,62782.0,0.009]
[1724752824003,0.318532,62788.0,62782.0,0.009]
[1724752824241,0.318538,62787.0,62782.0,0.009]
[1724752824474,0.159278,62784.0,62782.0,0.009]
[1724752824692,0.159271,62786.0,62782.0,0.009]
[1724752824908,0.159275,62785.0,62782.0,0.005]
[1724752825581,0.159272,62786.0,62782.0,0.005]
[1724752825826,0.318535,62788.0,62782.0,0.005]
[1724752825827,0.159274,62785.0,62782.0,0.01]
[1724752826043,0.159276,62784.0,62782.0,0.01]
[1724752826461,0.15908431,62784.0,62782.0,0.01]
[1724752827106,0.15908431,62784.0,62782.0,0.007]
[1724752827317,0.15908431,62784.0,62782.0,0.016]
[1724752827530,0.159278,62783.0,62782.0,0.009]
[1724752827748,0.439378,62783.0,62779.0,0.0009053]
[1724752827962,0.439378,62783.0,62782.0,0.019]
[1724752828405,0.2801,62783.0,62782.0,0.01]
[1724752828655,0.02578655,62789.0,62783.0,0.159277]
[1724752828864,0.02578655,62789.0,62784.0,0.15891809]
[1724752829082,0.18505055,62789.0,62784.0,0.15891809]
[1724752829804,0.159267,62788.0,62782.0,0.01]
[1724752830032,0.159271,62786.0,62782.0,0.16891809]
[1724752830240,0.34431455,62789.0,62782.0,0.16991809]
[1724752830241,0.159268,62787.0,62782.0,0.16991809]
[1724752830459,0.159268,62787.0,62783.0,0.004]
[1724752830666,0.34431455,62789.0,62783.0,0.004]
[1724752830667,0.50358055,62789.0,62783.0,0.004]
[1724752830931,0.02578655,62789.0,62784.0,0.009]
[1724752831107,0.02578655,62789.0,62782.0,0.15891809]
[1724752831108,0.159267,62788.0,62782.0,0.15891809]
[1724752831339,0.159268,62787.0,62782.0,0.18191809]
[1724752831726,0.159268,62787.0,62782.0,0.17091809]
[1724752831991,0.159268,62787.0,62783.0,0.009]
[1724752832169,0.159268,62787.0,62784.0,0.008]
[1724752833098,0.159266,62788.0,62784.0,0.008]
[1724752833582,0.159266,62788.0,62782.0,0.15891809]
[1724752833797,0.159266,62788.0,62782.0,0.17891809]
[1724752834024,0.159268,62787.0,62782.0,0.16791809]
[1724752834231,0.159268,62787.0,62782.0,0.15891809]
[1724752834460,0.34431655,62789.0,62784.0,0.009]
[1724752834461,0.159267,62788.0,62784.0,0.009]
[1724752834672,0.159267,62788.0,62784.0,0.008]
[1724752835105,0.159267,62788.0,62782.0,0.16791809]
[1724752835543,0.159278,62783.0,62782.0,0.009]
[1724752835753,0.159278,62783.0,62782.0,0.018]
[1724752835984,0.796392,62783.0,62782.0,0.018]
[1724752836190,0.477835,62783.0,62782.0,0.009]
[1724752836588,0.477835,62783.0,62782.0,0.02]
[1724752836829,1.091592,62783.0,62782.0,0.009]
[1724752837049,1.091592,62783.0,62779.0,0.0009053]
[1724752837050,0.477858,62780.0,62779.0,0.0009053]
[1724752837526,0.79643,62780.0,62779.0,0.0009053]
[1724752838371,0.79643,62780.0,62779.0,0.0149053]
[1724752839004,0.79643,62780.0,62779.0,0.0289053]
[1724752839218,0.477858,62780.0,62779.0,0.0289053]
[1724752840133,1.09163,62780.0,62779.0,0.0289053]
[1724752840353,0.773058,62780.0,62779.0,0.0289053]
[1724752840566,0.159286,62780.0,62779.0,0.0289053]
[1724752840776,0.47944529,62783.0,62779.0,0.0149053]
[1724752841004,0.47944529,62783.0,62779.0,0.0009053]
[1724752841282,0.47944529,62783.0,62779.0,0.0139053]
[1724752841495,0.34674529,62783.0,62779.0,0.0279053]
[1724752841702,0.02496529,62783.0,62779.0,0.0009053]
[1724752841941,0.02496529,62783.0,62780.0,0.1658]
[1724752842829,0.160089,62788.0,62780.0,0.1658]
[1724752843493,0.000823,62788.0,62780.0,0.32471809]
[1724752843752,0.000823,62788.0,62781.0,0.1302]
[1724752843941,0.000823,62788.0,62782.0,0.159278]
[1724752844605,0.000823,62788.0,62781.0,0.289482]
[1724752845041,0.000823,62788.0,62782.0,0.159281]
[1724752845253,0.000823,62788.0,62782.0,0.011]
[1724752845464,0.000823,62788.0,62782.0,0.023]
[1724752846606,0.000823,62788.0,62782.0,0.012]
[1724752846824,0.000823,62788.0,62781.0,0.300481]
[1724752847261,0.000823,62788.0,62781.0,0.312481]
[1724752847492,0.000773,62788.0,62782.0,0.15928]
[1724752847696,0.000773,62788.0,62782.0,0.023]
[1724752847908,0.1579,62787.0,62782.0,0.023]
[1724752848121,0.1579,62787.0,62782.0,0.011]
[1724752848331,0.1579,62787.0,62781.0,0.012]
[1724752848332,0.1529,62787.0,62781.0,0.012]
[1724752848558,0.1529,62787.0,62783.0,0.0009053]
[1724752849273,0.1244,62786.0,62783.0,0.0009053]
[1724752849482,0.12838181,62786.0,62783.0,0.0009053]
[1724752849701,0.159274,62785.0,62783.0,0.0009053]
[1724752849938,0.00398202,62784.0,62783.0,0.0009053]
[1724752850170,0.16325802,62784.0,62783.0,0.0009053]
[1724752850635,0.16325802,62784.0,62783.0,0.0149053]
[1724752850848,0.16325802,62784.0,62783.0,0.0009053]
[1724752851074,0.159276,62784.0,62783.0,0.0009053]
[1724752851302,0.287376,62784.0,62783.0,0.0149053]
[1724752851524,0.450176,62784.0,62783.0,0.0289053]
[1724752852618,0.768728,62784.0,62783.0,0.0289053]
[1724752852834,1.08728,62784.0,62783.0,0.0289053]
[1724752853935,0.2909,62784.0,62783.0,0.0289053]
[1724752854388,0.319307,62788.0,62783.0,0.0289053]
[1724752854389,0.2851,62787.0,62783.0,0.0289053]
[1724752854612,0.159271,62786.0,62783.0,0.0289053]
[1724752855291,0.1586,62787.0,62783.0,0.0289053]
[1724752855510,0.159271,62786.0,62783.0,0.0289053]
[1724752855957,0.317868,62787.0,62783.0,0.0289053]
[1724752856400,0.317868,62787.0,62783.0,0.0009053]
[1724752856619,0.317868,62787.0,62783.0,0.0149053]
[1724752856864,0.317868,62787.0,62783.0,0.0269053]
[1724752857082,0.317868,62787.0,62783.0,0.0129053]
[1724752857295,0.00398202,62786.0,62783.0,0.0259053]
[1724752857721,0.16325302,62786.0,62783.0,0.0259053]
[1724752858391,0.16325302,62786.0,62783.0,0.0139053]
[1724752859707,0.317869,62787.0,62783.0,0.0269053]
[1724752859923,0.317869,62787.0,62783.0,0.0139053]
[1724752860166,0.317869,62787.0,62783.0,0.0279053]
[1724752860860,0.00398197,62786.0,62783.0,0.0149053]
[1724752861002,0.1586,62787.0,62783.0,0.0009053]
[1724752861218,0.1586,62787.0,62783.0,0.0259053]
[1724752863046,0.00475487,62788.0,62783.0,0.0259053]
[1724752863257,0.00475485,62788.0,62783.0,0.0259053]
[1724752864102,0.00475485,62788.0,62783.0,0.0009053]
[1724752864312,0.00475485,62788.0,62783.0,0.0119053]
[1724752864512,0.00475485,62788.0,62783.0,0.0239053]
[1724752867567,0.16402085,62788.0,62783.0,0.0239053]
[1724752868021,0.00475485,62788.0,62783.0,0.0239053]
[1724752868622,0.00456316,62788.0,62783.0,0.0239053]
[1724752869506,0.00456316,62788.0,62784.0,0.01731612]
[1724752869686,0.00456316,62788.0,62785.0,0.01731612]
[1724752869894,0.00456316,62788.0,62786.0,0.01731612]
[1724752870131,0.00456316,62788.0,62787.0,0.01731612]
[1724752870797,0.00058131,62788.0,62787.0,0.01731612]
[1724752871014,0.00058131,62788.0,62785.0,0.012]
[1724752871232,0.00058131,62788.0,62787.0,0.01731598]
[1724752872375,0.00058131,62788.0,62787.0,0.02931598]
[1724752873030,0.00058131,62788.0,62787.0,0.04031598]
[1724752873666,8.131e-05,62788.0,62787.0,0.04031598]
[1724752874317,8.131e-05,62788.0,62787.0,0.04031596]
[1724752874768,8.131e-05,62788.0,62787.0,0.023]
[1724752874994,0.15934731,62788.0,62787.0,0.04031592]
[1724752877936,0.15934731,62788.0,62787.0,0.023]
[1724752878371,8.131e-05,62788.0,62787.0,0.04031609]
[1724752878582,0.15934731,62788.0,62787.0,0.04031609]
[1724752880341,8.131e-05,62788.0,62787.0,0.04031609]
[1724752880565,0.15934731,62788.0,62787.0,0.04031609]
[1724752882886,0.99420488,62788.0,62787.0,0.04031609]
[1724752883144,0.99420488,62788.0,62787.0,0.023]
[1724752883145,0.56501606,62788.0,62787.0,0.023]
[1724752883850,1.17114806,62788.0,62787.0,0.023]
[1724752884800,1.17114806,62788.0,62775.0,0.1513]
[1724752884801,0.124,62770.0,62757.0,0.0009053]
[1724752885067,0.124,62770.0,62759.0,0.47675426]
[1724752885068,0.602011,62760.0,62759.0,0.47675426]
[1724752885278,0.602011,62760.0,62757.0,0.0009053]
[1724752885279,0.478018,62759.0,62758.0,0.01732288]
[1724752885491,0.896697,62759.0,62758.0,0.01732288]
[1724752885740,1.215376,62759.0,62758.0,0.01732288]
[1724752885964,1.378276,62759.0,62758.0,0.01732288]
[1724752887069,1.378276,62759.0,62758.0,0.01932288]
[1724752887289,1.53719409,62759.0,62758.0,0.01932288]
[1724752887508,1.378276,62759.0,62758.0,0.01732288]
[1724752887948,1.378276,62759.0,62758.0,0.01932288]
[1724752888372,1.378276,62759.0,62758.0,0.02232288]
[1724752888822,1.378276,62759.0,62758.0,0.01932288]
[1724752889263,1.52555701,62759.0,62758.0,0.01732288]
[1724752890377,1.52555701,62759.0,62757.0,0.0009053]
[1724752890378,1.115394,62758.0,62757.0,0.0009053]
[1724752890591,1.215394,62758.0,62757.0,0.0009053]
[1724752890822,1.37431209,62758.0,62757.0,0.0009053]
[1724752892737,1.37431209,62758.0,62757.0,0.0019053]
[1724752892981,1.52561209,62758.0,62757.0,0.0019053]
[1724752893218,1.52561209,62758.0,62757.0,0.0009053]
[1724752893654,1.52561209,62758.0,62757.0,0.0019053]
[1724752894515,1.65091209,62758.0,62757.0,0.0019053]
[1724752898734,1.65091209,62758.0,62746.0,0.02259092]
[1724752898735,1.72573,62747.0,62746.0,0.02259092]
[1724752898952,0.79685,62747.0,62746.0,0.02259092]
[1724752899174,0.47811,62747.0,62746.0,0.02259092]
[1724752899391,0.79685,62747.0,62746.0,0.03715001]
[1724752899613,0.47811,62747.0,62746.0,0.03715001]
[1724752900073,0.15937,62747.0,62746.0,0.03715001]
[1724752900286,0.02896154,62750.0,62746.0,0.03715001]
[1724752900523,0.02896154,62750.0,62747.0,0.1608]
[1724752900524,0.02497715,62750.0,62747.0,0.1608]
[1724752900753,0.02497715,62750.0,62748.0,0.019795]
[1724752901257,0.159365,62749.0,62748.0,0.019795]
[1724752902345,0.159365,62749.0,62748.0,0.004]
[1724752902859,0.1587,62749.0,62746.0,0.02759092]
[1724752903085,0.79685,62747.0,62746.0,0.02259092]
[1724752903729,1.11559,62747.0,62746.0,0.02259092]
[1724752905343,1.11559,62747.0,62746.0,0.02359092]
[1724752905783,1.11559,62747.0,62746.0,0.02459092]
[1724752906238,0.79685,62747.0,62746.0,0.02459092]
[1724752906474,0.47811,62747.0,62746.0,0.02459092]
[1724752906682,0.79685,62747.0,62746.0,0.02459092]
[1724752909146,0.79685,62747.0,62746.0,0.02549622]
[1724752910629,0.47811,62747.0,62746.0,0.02549622]
[1724752910846,0.79685,62747.0,62746.0,0.02549622]
[1724752911896,0.47811,62747.0,62746.0,0.02549622]
[1724752912560,0.02497715,62750.0,62746.0,0.02549622]
[1724752912796,0.159368,62748.0,62746.0,0.02549622]
[1724752913007,0.16335157,62749.0,62746.0,0.02549622]
[1724752913229,0.02497715,62750.0,62746.0,0.15229622]
[1724752913673,0.02797715,62750.0,62746.0,0.15229622]
[1724752913878,0.159365,62749.0,62746.0,0.15229622]
[1724752914326,0.159365,62749.0,62746.0,0.15129622]
[1724752914566,0.159365,62749.0,62747.0,0.17612575]
[1724752914777,0.02997715,62750.0,62748.0,0.01732575]
[1724752914997,0.18933915,62750.0,62749.0,0.01732575]
[1724752915205,0.159365,62749.0,62747.0,0.1588]
[1724752915430,0.159365,62749.0,62748.0,0.01732585]
[1724752915644,0.02497715,62750.0,62748.0,0.05006806]
[1724752915877,0.02497715,62750.0,62749.0,0.01732585]
[1724752915878,0.50704946,62750.0,62749.0,0.01732585]
[1724752916094,0.18832446,62750.0,62749.0,0.01732585]
[1724752916539,0.02497715,62750.0,62749.0,0.01732585]
[1724752916976,0.02497715,62750.0,62748.0,0.002]
[1724752916977,0.159365,62749.0,62748.0,0.002]
[1724752917203,0.796825,62749.0,62748.0,0.002]
[1724752918283,0.796825,62749.0,62748.0,0.005]
[1724752918501,0.47811,62747.0,62746.0,0.02349622]
[1724752918722,0.47811,62747.0,62746.0,0.04082282]
[1724752918924,0.15937,62747.0,62746.0,0.04082282]
[1724752919144,0.1633546,62747.0,62746.0,0.04082282]
[1724752919796,0.1643546,62747.0,62746.0,0.02949622]
[1724752920696,0.16416286,62747.0,62746.0,0.02949622]
[1724752920943,0.48390286,62747.0,62746.0,0.05382281]
[1724752921576,0.47991826,62747.0,62746.0,0.05382281]
[1724752921789,0.16117826,62747.0,62746.0,0.05382281]
[1724752922411,0.002,62747.0,62746.0,0.05382281]
[1724752923231,0.16137,62747.0,62746.0,0.05382281]
[1724752924267,0.002,62747.0,62746.0,0.05382281]
[1724752924484,0.002,62747.0,62746.0,0.03649622]
[1724752924729,0.16137,62747.0,62746.0,0.05382277]
[1724752924923,0.002,62747.0,62746.0,0.05382277]
[1724752926248,0.16137,62747.0,62746.0,0.05382277]
[1724752926692,0.16137,62747.0,62746.0,0.03649622]
[1724752928498,0.48011,62747.0,62746.0,0.03649622]
[1724752931432,0.79885,62747.0,62746.0,0.03649622]
[1724752931645,0.95785,62747.0,62746.0,0.03649622]
[1724752932332,0.79885,62747.0,62746.0,0.03649622]
[1724752933452,0.799674,62747.0,62746.0,0.03649622]
[1724752935210,0.162194,62747.0,62746.0,0.03649622]
[1724752935654,0.162194,62747.0,62746.0,0.05382213]
[1724752935871,0.002824,62747.0,62746.0,0.05382213]
[1724752936075,0.480934,62747.0,62746.0,0.05382213]
[1724752936276,0.480934,62747.0,62746.0,0.07526434]
[1724752936505,0.002824,62747.0,62746.0,0.07526434]
[1724752936709,0.162194,62747.0,62746.0,0.07526434]
[1724752937313,0.002824,62747.0,62746.0,0.07526434]
[1724752937516,0.480934,62747.0,62746.0,0.05382154]
[1724752937713,0.475934,62747.0,62746.0,0.05382154]
[1724752938814,0.475934,62747.0,62746.0,0.03649622]
[1724752939026,0.475934,62747.0,62746.0,0.05382241]
[1724752939671,0.475934,62747.0,62746.0,0.03649622]
[1724752944169,0.794674,62747.0,62746.0,0.03649622]
[1724752944382,1.092774,62747.0,62746.0,0.03649622]
[1724752945534,1.511514,62747.0,62746.0,0.03649622]
[1724752945965,1.62995862,62747.0,62746.0,0.03649622]
[1724752946214,1.511514,62747.0,62746.0,0.03649622]
[1724752946410,1.512338,62747.0,62746.0,0.02349622]
[1724752946856,1.518338,62747.0,62746.0,0.02449622]
[1724752947105,0.56384209,62747.0,62733.0,2.4791576]
[1724752947305,1.93723346,62734.0,62733.0,2.4791576]
[1724752947530,1.81888343,62734.0,62733.0,2.4791576]
[1724752947752,1.91888343,62734.0,62733.0,2.4791576]
[1724752948201,2.03710128,62734.0,62733.0,2.4791576]
[1724752948426,1.91888343,62734.0,62733.0,2.4811576]
[1724752948644,2.2210056,62734.0,62733.0,2.4811576]
[1724752948905,2.2210056,62734.0,62733.0,2.4801576]
[1724752949124,2.2210056,62734.0,62733.0,2.4821576]
[1724752949340,2.10278775,62734.0,62733.0,2.4821576]
[1724752949576,2.10278775,62734.0,62733.0,2.4801576]
[1724752949794,2.80278775,62734.0,62733.0,2.4801576]
[1724752950240,2.9338887,62734.0,62733.0,2.4791576]
[1724752950470,2.9338887,62734.0,62733.0,2.4811576]
[1724752950956,2.9438887,62734.0,62733.0,2.4811576]
[1724752951156,2.98109532,62734.0,62733.0,2.4811576]
[1724752951377,2.99109532,62734.0,62733.0,2.4811576]
[1724752951597,2.99109532,62734.0,62733.0,2.4791576]
[1724752951809,3.00209532,62734.0,62733.0,2.4801576]
[1724752952248,2.79565187,62734.0,62733.0,2.4801576]
[1724752952691,2.09565187,62734.0,62733.0,2.4801576]
[1724752953156,2.17491187,62734.0,62733.0,2.4801576]
[1724752958760,2.17491187,62734.0,62733.0,2.4809816]
[1724752962110,2.87491187,62734.0,62733.0,2.4809816]
[1724752962322,3.03382996,62734.0,62733.0,2.4809816]
[1724752964603,2.87491187,62734.0,62733.0,2.4809816]
[1724752966204,2.17491187,62734.0,62733.0,2.4809816]
[1724752968023,1.34074849,62734.0,62733.0,2.4809816]
[1724752968248,1.34074849,62734.0,62733.0,2.6197816]
[1724752968249,0.12524623,62734.0,62733.0,2.6197816]
[1724752968724,0.10026,62734.0,62733.0,2.7884816]
[1724752968955,0.10026,62734.0,62733.0,3.44294257]
[1724752969206,0.10026,62734.0,62733.0,3.76175357]
[1724752969431,0.08926,62734.0,62733.0,3.76075357]
[1724752969699,0.09326,62734.0,62733.0,3.44194257]
[1724752970144,0.07926,62734.0,62733.0,3.76075357]
[1724752970398,0.0811664,62734.0,62733.0,3.78475357]
[1724752970639,0.0811664,62734.0,62733.0,3.79375357]
[1724752971099,0.0821664,62734.0,62733.0,3.79475357]
[1724752971547,0.0821664,62734.0,62733.0,3.48725357]
[1724752971778,0.0821664,62734.0,62733.0,2.4909816]
[1724752972005,0.0821664,62734.0,62733.0,2.6480816]
[1724752972260,0.0821664,62734.0,62733.0,2.8074866]
[1724752972479,0.0821664,62734.0,62733.0,2.6480816]
[1724752972480,0.08179523,62734.0,62733.0,2.6480816]
[1724752974526,0.0029064,62734.0,62733.0,2.6480816]
[1724752975212,0.00271455,62734.0,62733.0,2.6480816]
[1724752975447,0.00271455,62734.0,62733.0,3.27102495]
[1724752975677,0.00271455,62734.0,62733.0,3.27102485]
[1724752976125,0.00271455,62734.0,62733.0,3.42994294]
[1724752976555,0.00271455,62734.0,62733.0,3.42994298]
[1724752976779,0.00271455,62734.0,62733.0,3.42994292]
[1724752977687,0.00271455,62734.0,62733.0,3.42994298]
[1724752977927,0.00271455,62734.0,62733.0,3.42994281]
[1724752978184,0.00271455,62734.0,62733.0,3.41261569]
[1724752978819,0.08161455,62734.0,62733.0,3.41261569]
[1724752980714,0.08161455,62734.0,62733.0,2.7754816]
[1724752981789,0.08161455,62734.0,62733.0,2.9348866]
[1724752982784,0.08161455,62734.0,62733.0,2.95221395]
[1724752983233,0.08161455,62734.0,62733.0,4.09156451]
[1724752984107,0.08161455,62734.0,62733.0,4.07423769]
[1724752984333,0.08161455,62734.0,62733.0,4.09156412]
[1724752984581,0.08161455,62734.0,62733.0,4.0915641]
[1724752984798,0.08161455,62734.0,62733.0,4.0916251]
[1724752985229,0.08161455,62734.0,62733.0,4.0906251]
[1724752985445,0.08161455,62734.0,62733.0,3.73148769]
[1724752985667,0.08161455,62734.0,62733.0,3.80969471]
[1724752985907,0.08161455,62734.0,62733.0,3.73148769]
[1724752988764,0.08161455,62734.0,62733.0,2.6504476]
[1724752989014,0.08161455,62734.0,62733.0,2.4910426]
[1724752990435,0.08161455,62734.0,62733.0,2.9692586]
[1724752990657,0.08161455,62734.0,62733.0,3.60808769]
[1724752990853,0.08161455,62734.0,62733.0,4.06529869]
[1724752991067,0.08161455,62734.0,62733.0,4.09207908]
[1724752991573,0.08161455,62734.0,62733.0,3.77326808]
[1724752991773,0.08161455,62734.0,62733.0,2.4910426]
[1724752992730,0.08161455,62734.0,62733.0,2.64996069]
[1724752992931,0.08161455,62734.0,62733.0,3.12817669]
[1724752993616,0.08161455,62734.0,62733.0,3.15495772]
[1724752993831,0.08161455,62734.0,62733.0,3.44698769]
[1724752994964,0.08161455,62734.0,62733.0,2.4910426]
[1724752996333,0.24101755,62734.0,62733.0,2.4910426]
[1724752996559,0.86690891,62734.0,62733.0,2.4910426]
[1724752996830,1.60452091,62734.0,62733.0,2.4910426]
[1724752997079,1.62950539,62734.0,62733.0,2.4910426]
[1724752997521,1.62750539,62734.0,62733.0,2.4800426]
[1724752997758,1.78642348,62734.0,62733.0,2.4800426]
[1724752997969,1.78642348,62734.0,62733.0,2.4820426]
[1724752998178,1.78642348,62734.0,62733.0,2.4830426]
[1724752998424,1.78642348,62734.0,62733.0,2.4800426]
[1724752998640,1.79042348,62734.0,62733.0,2.4800426]
[1724752998855,1.79342348,62734.0,62733.0,2.4800426]
[1724752999071,1.78642348,62734.0,62733.0,2.4800426]
[1724753000671,1.79042348,62734.0,62733.0,2.4800426]
[1724753001113,1.79342348,62734.0,62733.0,2.4800426]
[1724753001749,2.49342348,62734.0,62733.0,2.4800426]
[1724753001977,2.33450539,62734.0,62733.0,2.4800426]
[1724753003362,1.31171403,62734.0,62733.0,2.4800426]
[1724753004010,1.28672955,62734.0,62733.0,2.4800426]
[1724753004219,1.31171463,62734.0,62733.0,2.4800426]
[1724753005150,1.63052063,62734.0,62733.0,2.4800426]
[1724753005377,1.78943872,62734.0,62733.0,2.4800426]
[1724753005588,1.63052063,62734.0,62733.0,2.4800426]
[1724753009356,1.94932663,62734.0,62733.0,2.4800426]
[1724753009576,2.64932663,62734.0,62733.0,2.4800426]
[1724753014234,1.94932663,62734.0,62733.0,2.4800426]
[1724753016711,1.94913478,62734.0,62733.0,2.4800426]
[1724753016943,1.94913478,62734.0,62733.0,1.58368942]
[1724753016944,1.95113478,62734.0,62733.0,1.58368942]
[1724753017150,3.31174678,62734.0,62733.0,1.58368942]
[1724753017563,3.40614448,62734.0,62733.0,1.58368942]
[1724753017788,3.30774678,62734.0,62733.0,1.58368942]
[1724753017988,3.46666487,62734.0,62733.0,1.58368942]
[1724753018191,3.84886487,62734.0,62733.0,1.44818942]
[1724753018364,3.91961547,62734.0,62733.0,1.2413935]
[1724753018591,3.84886487,62734.0,62733.0,1.2413935]
[1724753018978,3.84586487,62734.0,62733.0,1.2413935]
[1724753019175,3.85986487,62734.0,62733.0,1.2413935]
[1724753019606,3.84586487,62734.0,62733.0,0.6355779]
[1724753019851,2.541804,62732.0,62731.0,0.00053]
[1724753020075,3.62850412,62732.0,62731.0,0.00053]
[1724753020307,3.62850412,62732.0,62710.0,0.00127]
[1724753020308,1.080553,62715.0,62710.0,0.00127]
[1724753020521,2.42395912,62715.0,62710.0,0.00127]
[1724753020731,2.42395912,62715.0,62671.0,0.00058812]
[1724753020732,0.480384,62711.0,62671.0,0.00058812]
[1724753020966,0.94381821,62715.0,62687.0,0.1252]
[1724753020967,0.523061,62701.0,62687.0,0.1252]
[1724753021196,1.2164151,62701.0,62687.0,0.1252]
[1724753021416,1.6343891,62701.0,62687.0,0.1252]